Cogmind - Beta 16 @@@ ROGUE MODE // 2026.01.16 @ 23:47:46 Player: Bity Result: Destroyed by G-47 Trooper with Particle Gun Performance ------------- Evolutions (2) 1000 Regions Visited (5) 1000 Robots Destroyed (76) 380 Value Destroyed (2510) 2510 Prototype IDs (3) 60 Alien Tech Used (0) 0 Bonus (1853) 1853 TOTAL SCORE: 6803 Bonus ------- High Alert Combat Kills 317 Follower Combat Kills 336 Entered Garrisons 200 Used RIF Installer 1000 Cogmind --------- Core Integrity 0/550 Matter 214/300 Energy 277/280 System Corruption 1% Temperature Warm (136) Movement Rolling (120) Ox2 Location -8/Materials Parts ------- > --- POWER (1) -------- Heavy Ion Engine > --- PROPULSION (6) --- Aluminum Leg Armored Wheel Cesium-ion Thruster > --- UTILITY (2) ------ Cryofiber Web Large Storage Unit > --- WEAPON (2) ------- Shock Rifle > --- INVENTORY (15) --- Light Nuclear Core Improved Deuterium Engine Cesium-ion Thruster Cesium-ion Thruster Cesium-ion Thruster Improved Heat Sink Signal Interpreter Transmission Jammer Hacking Suite Hacking Suite Relay Coupler [NC] (28) Improved Medium Laser Improved Medium Laser Heavy Particle Cannon Katana Peak State ------------ > --- POWER ------------ Heavy Ion Engine > --- PROPULSION ------- Cesium-ion Thruster Cesium-ion Thruster Cesium-ion Thruster Cesium-ion Thruster Cesium-ion Thruster Cesium-ion Thruster > --- UTILITY ---------- Improved Heat Sink Large Storage Unit > --- WEAPON ----------- Improved Medium Laser Improved Medium Laser > --- INVENTORY -------- Ion Engine Light Ion Engine Improved Ion Engine Aluminum Leg Titanium Leg Improved Heat Sink Signal Interpreter Hacking Suite Hacking Suite Heavy EM Pulse Gun Improved Medium Laser Improved Medium Laser Heavy Particle Cannon Assault Cannon Katana [Rating: 34] Favorites ----------- Power Improved Ion Engine Engine Improved Ion Engine Power Core Light Nuclear Core Propulsion Aluminum Leg Treads Improved Treads Leg Aluminum Leg Wheel Armored Wheel Flight Unit Cesium-ion Thruster Utility Large Storage Unit Device Cryofiber Web Storage Large Storage Unit Processor Signal Interpreter Weapon Improved Medium Laser Energy Gun Improved Medium Laser Energy Cannon Heavy Particle Cannon Ballistic Gun Assault Rifle Ballistic Cannon Assault Cannon Launcher Concussive RPG Slashing Weapon Katana Build | -11 -10 -9 -8 -8 -8 ------- Run | Yrd Mat Mat Mat Gar Mat Slots Evolved 4 | . . 2 2 . . Power . | . . . . . . Propulsion 4 | . . 2 2 . . Utility . | . . . . . . Weapon . | . . . . . . Parts Attached 59 | 1 5 23 10 18 2 Power 6 | . . 3 1 2 . Engine 5 | . . 3 1 1 . Core 1 | . . . . 1 . Reactor . | . . . . . . Propulsion 32 | . 3 9 7 12 1 Treads 1 | . . 1 . . . Leg 14 | . 1 7 1 5 . Wheel 4 | . 2 1 . 1 . Hover . | . . . . . . Flight 13 | . . . 6 6 1 Utility 6 | 1 2 2 1 . . Device 4 | 1 . 2 1 . . Storage 1 | . 1 . . . . Processor 1 | . 1 . . . . Hackware . | . . . . . . Protection . | . . . . . . Artifact . | . . . . . . Weapon 15 | . . 9 1 4 1 Energy Gun 7 | . . 5 . 1 1 Energy Cannon 4 | . . 3 . 1 . Ballistic Gun 1 | . . 1 . . . Ballistic Cannon 1 | . . . . 1 . Launcher 1 | . . . . 1 . Special Weapon . | . . . . . . Impact Weapon . | . . . . . . Slashing Weapon 1 | . . . 1 . . Piercing Weapon . | . . . . . . Special Melee Weapon . | . . . . . . Unidentified Prototypes 3 | . . 3 . . . Parts Lost 25 | . . 9 . 11 5 Power 3 | . . 2 . 1 . Propulsion 18 | . . 4 . 10 4 Utility 1 | . . 1 . . . Weapon 3 | . . 2 . . 1 Highest Loss Streak 5 | . . 5 . 2 4 To Critical Strikes . | . . . . . . Average Backups 13 | 6 8 12 14 14 15 Power 2 | 1 1 1 2 2 2 Propulsion 2 | 4 3 3 2 . 2 Utility 4 | . . 2 4 5 6 Weapon 4 | 1 2 4 5 4 3 Tool/Special . | . . . . . . Unused Backups 33 | . . 6 3 9 15 Power 12 | . . 1 . 7 4 Propulsion 6 | . . . 1 1 4 Utility 6 | . . . . . 6 Weapon 8 | . . 5 2 1 . Tool/Special 1 | . . . . . 1 Average Slot Usage (%) 96 | . 100 95 95 96 94 Engine 8 | . 14 8 9 7 9 Leg 26 | . 26 34 24 20 38 Wheel 6 | . 1 5 . 8 9 Flight 12 | . . . 25 21 1 Device 8 | . 14 4 9 9 9 Storage 10 | . 14 11 9 9 9 Processor 1 | . . 6 . . . Energy Gun 6 | . . 5 10 7 7 Energy Cannon 7 | . . 9 . 8 6 Ballistic Gun 4 | . 28 6 . . . Peak Build Rating 34 | 7 7 21 34 34 30 Average Rating 22 | 6 7 13 27 29 28 On Entrance 17 | 6 7 7 21 31 30 Avg Prop Armor Cover (%) 11 | . . 11 7 12 5 Naked Turns . | . . . . . . Heaviest Build 39 | 15 30 35 35 39 38 Greatest Support 67 | 20 20 49 57 67 67 Greatest Overweight (x) 3 | . 1 2 1 3 3 Average Overweight (x) . | . . . . . . Largest Inventory Capacity 15 | 8 15 15 15 15 15 Average Capacity 14 | 8 8 15 15 15 15 Most Carried 15 | 8 9 15 15 15 15 Average Carried 13 | 6 8 12 14 14 14 Final Capacity 15 | 8 15 15 15 15 15 Final Carried 15 | 8 9 15 15 15 15 Class Distribution -------------------- 67% | Mutant 18% | Scavenger-Mutant 8% | Commander-Mutant 5% | Sprinter Dominant Class ---------------- Mutant | -10/Materials Mutant | -9/Materials Sprinter | -8/Materials Mutant | -8/Garrison Scavenger-Mutant | -8/Materials Resources | -11 -10 -9 -8 -8 -8 ----------- Run | Yrd Mat Mat Mat Gar Mat Matter Collected 1390 | 240 112 429 . 609 . Remotely . | . . . . . . Salvage Created 2710 | 129 194 1163 . 1017 207 Parts 167 | 11 21 65 . 59 11 Haulers Intercepted 1 | . . 1 . . . Recyclers Shooed 2 | 1 . 1 . . . Parts Field Recycled . | . . . . . . Retrieved Matter . | . . . . . . Parts Self-Destructed . | . . . . . . Prevented . | . . . . . . Parts Restored . | . . . . . . Kills | -11 -10 -9 -8 -8 -8 ------- Run | Yrd Mat Mat Mat Gar Mat Combat Hostiles Destroyed 65 | . 9 22 . 28 6 Guns 28 | . 9 11 . 5 3 Cannons 32 | . . 10 . 20 2 AOE 4 | . . 1 . 2 1 Classes Destroyed 11 | 2 3 5 . 1 . Worker 1 | . . 1 . . . Builder 1 | . 1 . . . . Tunneler 3 | 3 . . . . . Hauler 1 | . . 1 . . . Recycler 3 | 1 . 2 . . . Watcher 2 | . 1 1 . . . Swarmer 21 | . 9 2 . 8 2 Cutter 3 | . . . . 3 . Grunt 28 | . . 15 . 9 4 Duelist 1 | . . 1 . . . Sentry 12 | . . 4 . 8 . Best Kill Streak 7 | 2 6 7 . 3 4 Combat Bots Only 7 | . 6 7 . 3 4 Max Kills in Single Turn 2 | 1 2 1 . 2 2 Gunslinging 1 | . 1 . . . . Exploded 2 | . . 1 . 2 1 Melee . | . . . . . . Uniques/NPCs Destroyed . | . . . . . . Combat | -11 -10 -9 -8 -8 -8 -------- Run | Yrd Mat Mat Mat Gar Mat Hostile Shots Fired 374 | . 30 135 9 125 75 Missed 106 | . 8 40 5 37 16 Hits 268 | . 22 95 4 88 59 Melee 21 | . . 4 . 17 . Projectile 247 | . 22 91 4 71 59 Critical Strikes 17 | . . 3 . 11 3 Damage Taken 3692 | . 179 1416 52 1109 936 Core 899 | . 25 313 32 250 279 Absorbed by Shields 113 | . . . . 113 . Core Remaining (%) 70 | 100 90 21 . . . Volleys Fired 224 | 8 21 77 . 89 29 Largest 2 | 2 2 2 . 2 2 Hottest 131 | 40 40 120 . 131 131 Shots Fired 401 | 16 42 140 . 156 47 Gun 228 | 16 42 84 . 68 18 Cannon 172 | . . 56 . 87 29 Launcher 1 | . . . . 1 . Special . | . . . . . . Kinetic 143 | 16 42 50 . 22 13 Thermal 239 | . . 77 . 133 29 Explosive 1 | . . . . 1 . Electromagnetic 18 | . . 13 . . 5 Robot Hit Streak 24 | 10 3 11 . 24 7 Robot Miss Streak 5 | 2 4 3 . 3 5 Penetration Max . | . . . . . . Secondary Targets 2 | . 2 . . . . Max Gunslinging Chain 1 | . 1 . . . . Shots Hit Robots 240 | 10 21 88 . 93 28 Core Hits 111 | 5 12 38 . 43 13 Critical Kills . | . . . . . . Critical Parts Destroyed . | . . . . . . Critical Strikes 11 | . . 5 . 5 1 Burn 8 | . . 3 . 4 1 Destroy 1 | . . 1 . . . Blast 1 | . . . . 1 . Corrupt 1 | . . 1 . . . Melee Attacks 3 | . . . . 2 1 Impact . | . . . . . . Slashing 3 | . . . . 2 1 Piercing . | . . . . . . Sneak Attacks . | . . . . . . Combat Hostiles . | . . . . . . Follow-up Attacks . | . . . . . . Damage Inflicted 4712 | 126 315 1435 . 2059 777 Guns 2112 | 126 315 749 . 709 213 Cannons 2208 | . . 654 . 1170 384 Explosions 331 | . . 32 . 153 146 Melee 61 | . . . . 27 34 Ramming . | . . . . . . Kinetic 1238 | 126 315 393 . 295 109 Thermal 3041 | . . 901 . 1584 556 Explosive 153 | . . . . 153 . Electromagnetic 219 | . . 141 . . 78 Impact . | . . . . . . Slashing 61 | . . . . 27 34 Piercing . | . . . . . . Highest Corruption 2 | . 2 . . 1 1 Average Corruption 1 | . 2 . . 1 1 Corruption Purged . | . . . . . . Corruption Blocked . | . . . . . . Effects 4 | . 2 . . 1 1 Matter Fused 2 | . . . . 1 1 Energy Discharges 1 | . 1 . . . . Data Loss (minor) 1 | . 1 . . . . Overload Shots . | . . . . . . Overflow Damage 44 | . . . . 10 34 Projectiles 10 | . . . . 10 . Explosions 34 | . . . . . 34 Melee . | . . . . . . Knockbacks 5 | . . . . 2 3 Impact . | . . . . . . Kinetic 5 | . . . . 2 3 Secondary . | . . . . . . Self-Inflicted Damage 37 | . . . . . 37 Shots 1 | . . . . . 1 Rammed . | . . . . . . Targets Rammed . | . . . . . . Kicked . | . . . . . . Crushed . | . . . . . . Highest Temperature 390 | . . 341 46 390 374 Average Temperature 136 | . . 130 23 121 200 Received Heat Transfer 1484 | . . 609 27 317 531 Effects 2 | . . 2 . . . Shutdowns 1 | . . 1 . . . Energy Bleed 1 | . . 1 . . . Siege Activations . | . . . . . . Martial Activations . | . . . . . . Shielding Activations . | . . . . . . Robots Disrupted . | . . . . . . Combat Hostiles . | . . . . . . Robots Corrupted . | . . . . . . Combat Hostiles . | . . . . . . Parts Fried . | . . . . . . Impact Corruptions . | . . . . . . Robots Melted 1 | . . . . 1 . Combat Hostiles 1 | . . . . 1 . Parts Melted 13 | . . 2 . 10 1 Heat Transferred 6268 | . . 2246 . 3145 877 Parts Sabotaged . | . . . . . . Parts Stolen . | . . . . . . Parts Stripped . | . . . . . . Power Chain Reactions 2 | . . 1 . . 1 Alert | -11 -10 -9 -8 -8 -8 ------- Run | Yrd Mat Mat Mat Gar Mat Maximum Alert Level 4 | . . 1 . 4 3 Low Security (%) 38 | 100 100 65 100 8 . Level 1 18 | . . 34 . 17 . Level 2 17 | . . . . 29 48 Level 3 17 | . . . . 27 51 Level 4 8 | . . . . 16 . Level 5 . | . . . . . . High Security . | . . . . . . Max Security . | . . . . . . Peak Influence 1302 | 10 197 397 180 1302 804 Initial 634 | . . 61 159 117 634 Average 434 | 3 89 127 125 677 704 Influence Increases 2836 | 20 282 720 121 1295 398 Destroy 0b10 Robot/C 1500 | . 180 440 . 640 240 Destroy 0b10 Robot/NC 65 | 20 10 25 . . 10 Destroy Leader 218 | . 32 114 . 20 52 Allied During Kill 60 | . . . . 22 38 Successful Hack 33 | . . . 1 21 11 Select Force Hacks 60 | . 30 30 . . . Disable Machine 30 | . 15 . . . 15 Anti-Garrison Action 450 | . . . . 450 . Destroy Structure 105 | . . 6 . 67 32 Partial Spotted 90 | . . . 75 15 . Lose Combat Pursuer 225 | . 15 105 45 60 . Influence Decreases 2034 | 20 135 488 320 173 898 Entered New Map 1037 | . . 86 220 63 668 Time Decay 677 | 20 135 322 100 . 100 Lost Part 240 | . . 80 . 110 50 Lost Ally 80 | . . . . . 80 Squads Dispatched 9 | . 3 2 1 . 3 Investigation 5 | . 1 2 1 . 1 Extermination . | . . . . . . Reinforcement 4 | . 2 . . . 2 Assault . | . . . . . . Garrison . | . . . . . . Intercept . | . . . . . . Searches Triggered . | . . . . . . Construction Impeded 1 | . . . . . 1 Haulers Reinforced . | . . . . . . Active Scanning Responses . | . . . . . . Cargo Convoy Interrupts . | . . . . . . Stealth | -11 -10 -9 -8 -8 -8 --------- Run | Yrd Mat Mat Mat Gar Mat Distress Signals 9 | . . 2 . . 7 Communications Jammed . | . . . . . . Distress Signals . | . . . . . . Times Spotted 109 | . 13 34 12 35 15 Peak Tracking Total 18 | . 4 14 18 5 9 Tactical Retreats 9 | . 1 4 1 3 . Traps | -11 -10 -9 -8 -8 -8 ------- Run | Yrd Mat Mat Mat Gar Mat Traps Triggered 12 | . 1 1 1 9 . Indirectly . | . . . . . . Trap Hack Attempts . | . . . . . . Triggered . | . . . . . . Disarmed . | . . . . . . Reprogrammed . | . . . . . . Reused . | . . . . . . Traps Extracted . | . . . . . . Installed . | . . . . . . Triggered . | . . . . . . Machines | -11 -10 -9 -8 -8 -8 ---------- Run | Yrd Mat Mat Mat Gar Mat Machines Disabled 5 | . 1 . . 3 1 Max in Single Turn 2 | . 1 . . 2 1 Garrison Relay 1 | . . . . 1 . Phase Generator 1 | . . . . 1 . Machines Repaired . | . . . . . . Machines Dismantled . | . . . . . . Machines Sabotaged . | . . . . . . Overloaded Fab Kills . | . . . . . . Hacking | -11 -10 -9 -8 -8 -8 --------- Run | Yrd Mat Mat Mat Gar Mat Machines Accessed 15 | . 1 4 4 4 2 Terminals 11 | . . 3 2 4 2 Fabricators . | . . . . . . Repair Stations . | . . . . . . Recycling Units 2 | . 1 1 . . . Scanalyzers 1 | . . . 1 . . Garrison Access 1 | . . . 1 . . Total Hacks 46 | . 3 9 20 9 5 Successful 23 | . 2 3 14 2 2 Failed 22 | . 1 6 5 7 3 Catastrophic 7 | . . 2 . 4 1 Database Lockouts 1 | . . . 1 . . Manual 21 | . 2 9 5 . 5 Terminals 27 | . . 8 5 9 5 Fabricators . | . . . . . . Repair Stations . | . . . . . . Recycling Units 4 | . 3 1 . . . Scanalyzers 13 | . . . 13 . . Garrison Access 2 | . . . 2 . . Terminal Hacks 3 | . . . . 2 1 Open Door 1 | . . . . 1 . Emergency Access Points 1 | . . . . 1 . Terminal Index 1 | . . . . . 1 Fabricator Hacks . | . . . . . . Repair Station Hacks . | . . . . . . Recycling Unit Hacks 1 | . 1 . . . . Report Inventory 1 | . 1 . . . . Scanalyzer 12 | . . . 12 . . Insert Component 4 | . . . 4 . . Analyze 5 | . . . 5 . . Retrieve Study 3 | . . . 3 . . Garrison Access Hacks 1 | . . . 1 . . Unlock Access 1 | . . . 1 . . Unauthorized Hacks 6 | . 1 3 1 . 1 Terminals 4 | . . 2 1 . 1 Botnet 4 | . . 2 1 . 1 Fabricators . | . . . . . . Repair Stations . | . . . . . . Recycling Units 2 | . 1 1 . . . Tunnel 2 | . 1 1 . . . Scanalyzers . | . . . . . . Garrison Access . | . . . . . . Data Cores Recovered . | . . . . . . Used . | . . . . . . Hacking Detections 14 | . 1 3 4 4 2 Full Trace Events 5 | . . 1 . 3 1 Feedback Events 1 | . . . . 1 . Corruption 1 | . . . . 1 . Feedback Blocked . | . . . . . . Robot Schematics Acquired . | . . . . . . Robots Built . | . . . . . . Authchips . | . . . . . . Time . | . . . . . . Total Robot Build Rating . | . . . . . . Part Schematics Acquired 4 | . . . 4 . . Parts Built . | . . . . . . Authchips . | . . . . . . Time . | . . . . . . Total Part Build Rating . | . . . . . . Part Studies Acquired 3 | . . . 3 . . Parts Repaired . | . . . . . . Time . | . . . . . . Parts Recycled . | . . . . . . Recycled Matter . | . . . . . . Retrieved Matter . | . . . . . . Retrieved Components . | . . . . . . Parts Scanalyzed 4 | . . . 4 . . Part Schematics Acquired 4 | . . . 4 . . Parts Damaged . | . . . . . . Bothacking | -11 -10 -9 -8 -8 -8 ------------ Run | Yrd Mat Mat Mat Gar Mat Used RIF Installer 2 | . . . . 2 . Zone Cloak 1 | . . . . 1 . Robots Hacked . | . . . . . . Non-combat . | . . . . . . Combat . | . . . . . . Robot Hacks Applied . | . . . . . . Relay Couplers Released 5 | . . . . 5 . Machine Destruction 5 | . . . . 5 . Fabnet Peak Effective % . | . . . . . . Robots Rewired 6 | . . . . 6 . Allies Hacked . | . . . . . . Hacks Repelled . | . . . . . . Allies | -11 -10 -9 -8 -8 -8 -------- Run | Yrd Mat Mat Mat Gar Mat Total Allies 6 | . . . . 6 . Largest Group 5 | . . . . 5 5 Highest-Rated Group 89 | . . . . 89 79 Highest-Rated Ally 39 | . . . . 39 39 Total Orders . | . . . . . . Ally Attacks 97 | . . . . 12 85 Total Damage 995 | . . . . 282 713 Kills 14 | . . . . 5 9 Allies Corrupted . | . . . . . . Allies Melted . | . . . . . . Intel | -11 -10 -9 -8 -8 -8 ------- Run | Yrd Mat Mat Mat Gar Mat Active Infowar (turns) 371 | 49 322 . . . . Seismic 371 | 49 322 . . . . Robot Analysis Total . | . . . . . . Derelict Logs Recovered . | . . . . . . Drone Launches . | . . . . . . Drone Recoveries . | . . . . . . Exploration | -11 -10 -9 -8 -8 -8 ------------- Run | Yrd Mat Mat Mat Gar Mat Turns Passed 3874 | 67 324 1085 205 1978 215 Spaces Moved 2344 | 26 194 568 303 1159 94 Core . | . . . . . . Treads 57 | . . 57 . . . Legs 1513 | 26 184 401 73 744 85 Wheels 438 | . 10 110 . 309 9 Hover . | . . . . . . Flight 336 | . . . 230 106 . Fastest Speed 20 | 120 95 80 20 20 120 Average Speed 114 | 120 120 126 45 124 122 Slowest Speed 270 | 120 190 240 126 270 135 Overloaded Moves . | . . . . . . Propulsion Burnouts . | . . . . . . Robots Hopped 6 | . . . 6 . . Potential Cave-ins . | . . . . . . Cave-ins Triggered . | . . . . . . Exploration Rate (%) 38 | 3 41 41 39 92 17 Regions Visited 5 Branch Regions . Pre-discovered Areas 2 | . 1 1 . . . Known Exits Taken 2 | . 1 . 1 . . Unknown Exits Taken 2 | 1 . 1 . . . Scrap Searched . | . . . . . . Spaces Dug 1 | . . . . . 1 Terrain Destroyed 96 | . . 4 . 70 22 Melee . | . . . . . . Projectile 10 | . . . . . 10 AOE 86 | . . 4 . 70 12 Terrain Rammed . | . . . . . . Walls Destroyed . | . . . . . . Machines Disabled . | . . . . . . Actions | -11 -10 -9 -8 -8 -8 --------- Run | Yrd Mat Mat Mat Gar Mat Total 3135 | 45 244 791 364 1542 149 Wait 282 | 9 17 87 34 127 8 Move 2327 | 25 193 567 291 1157 94 Hop 6 | . . . 6 . . Pick Up 67 | 2 4 22 10 22 7 Fast Attach 15 | 1 . 4 . 10 . Attach 24 | . . 9 2 12 1 Detach 4 | . . 1 1 2 . Swap 49 | . 5 14 11 16 3 Drop 45 | . 4 10 9 16 6 Fire 224 | 8 21 77 . 89 29 Melee 3 | . . . . 2 1 Ram . | . . . . . . Kick . | . . . . . . Crush . | . . . . . . Escape Stasis 34 | . . . . 34 . Rewire 55 | . . . . 55 . Trap . | . . . . . . Miscellaneous . | . . . . . . Route ------- -11/Scrapyard -10/Materials -9/Materials (discovered 2 exits: *Mat / [*Min]) -8/Materials -8/Garrison (discovered 4 exits: *Mat x4) -8/Materials History --------- Turn | Location | Event 1 | -11/Scrapyard | Discovered new exit (range 3) 68 | -11/Scrapyard | Entered Materials 307 | -10/Materials | Build established: Mutant 368 | -10/Materials | Discovered new exit (range 9) 391 | -10/Materials | Identified exit to Materials 392 | -10/Materials | Entered another Materials area 392 | -9/Materials | Evolved 2 slots: Propulsion x2 515 | -9/Materials | Lost 3 parts (1p2n) 568 | -9/Materials | Discovered new exit (range 16) 884 | -9/Materials | Discovered new exit (range 9) 1031 | -9/Materials | Core integrity fell below 50% 1156 | -9/Materials | Lost 5 parts (1p2n1u1w) 1158 | -9/Materials | Destroyed 7 combat bots 1477 | -9/Materials | Entered another Materials area 1477 | -8/Materials | Evolved 2 slots: Propulsion x2 1639 | -8/Materials | Central database locked down 1682 | -8/Materials | Identified exit to Garrison 1682 | -8/Materials | Entered Garrison 1702 | -8/Garrison | Triggered checkpoint 1976 | -8/Garrison | Triggered checkpoint 2111 | -8/Garrison | Discovered new exit (range 12) 2208 | -8/Garrison | Triggered checkpoint 2396 | -8/Garrison | Attempted to access garrison exit controls, blocked by remote lockdown 2418 | -8/Garrison | Phase Generator disabled 2638 | -8/Garrison | Triggered checkpoint 2741 | -8/Garrison | Discovered new exit (range 3) 2777 | -8/Garrison | Core integrity fell below 50% 2868 | -8/Garrison | Installed Relay Interface Framework 2936 | -8/Garrison | Garrison Relay disabled 2980 | -8/Garrison | Build established: Scavenger-Mutant 3029 | -8/Garrison | Triggered checkpoint 3274 | -8/Garrison | Expanded RIF knowledge: Zone Cloak 3281 | -8/Garrison | Discovered new exit (range 12) 3352 | -8/Garrison | Triggered checkpoint 3368 | -8/Garrison | Discovered new exit (range 5) 3660 | -8/Garrison | Entered Materials 3660 | -8/Materials | Accompanied by 5 allies 3692 | -8/Materials | Build established: Commander-Mutant 3838 | -8/Materials | Lost 4 allies 3858 | -8/Materials | Core integrity fell below 20% 3873 | -8/Materials | Lost 4 parts (4n) 3875 | -8/Materials | Destroyed by G-47 Trooper with Particle Gun Last Messages --------------- 03830_ G-47 Trooper knocked back. 03832_ Critical hit (Burn: +37). 03832_ Titanium Leg destroyed. 03836_ M-13 Machinist knocked back. 03838_ Terminal disabled. 03838_ Aluminum Leg destroyed. 03842_ Critical hit (Burn: +37). 03842_ Carbon-fiber Leg destroyed. 03844_ Connecting with Terminal... 03845_ U-05 Engineer builds a Wall. 03849_ Acquired Shock Rifle. 03851_ G-47 Trooper knocked back. 03851_ Emergency Access malfunctions. 03854_ G-47 Trooper destroyed. 03856_ U-05 Engineer builds a Wall. 03873_ Chain reaction triggered in Lgt. Nuclear Core. 03873_ G-47 Trooper destroyed. 03873_ Assault Cannon destroyed. 03873_ Destroyed Assault Cannon. Map ----- +----------------------------------------------------+ | ?????????????????????????????????????????????????? | | ?????????????????????????????????????????????????? | | ?????????????????????????????????????????????????? | | ?????????????????????????????????????????????????? | | ?????????????????????????????????????????????????? | | ?????????????????????????????????????????????????? | | ?????????????????????????????????????????????????? | | ?????????????????????????????????????????????????? | | ?????????????????????????????????????????????????? | | ?????????????????????????????????????????????????? | | ?????????????????????????????????????????????????? | | ?????????????????????????????????????????????????? | | ?????????????????????????????????????????????????? | | ?????????????????????????????????????????????????? | | ?????????????????????????????????????????????????? | | ?????????????????????????????????????????????????? | | ?????????????????????????????????????????????????? | | ????????????????????????#+#??????????????????????? | | ????????????????????????# #??????????????????????? | | ????????????????????????# #??????????????????????? | | ????????????????????????# #??????????????????????? | | ????????????????????????# ??????????????????????? | | ????????????????????????# ##+###?????????????????? | | ????????????????????????# # k #?????????????????? | | ??????????????????????### ; "" #?????????????????? | | ??????????????????????# ;@; Y" #?????????????????? | | ??????????????????????# g%; "" #?????????????????? | | ??????????????????????# ; g #?????????????????? | | ?????????? #????????# ;;; #?????????????????? | | #????????? #????????### # * #?????????????????? | | #??#####?# #?####?????###%/####????????????????? | | #?? ??# #?#"""#?????##%** #????????????????? | | #? """""?# ###"Y"#######" ""#????????????????? | | #? """"" # ^ ##%= T"#????????????????? | | # """"" # ^ ^ ##*[!""#????????????????? | | # """""?+ ^ ^ ##%= #????????????????? | | + """""?# ^ ##==% #????????????????? | | # """""?# #%%"" #????????????????? | | # """""?# ! ##* "" #????????????????? | | #? ?# " ##%""" #????????????????? | | ########## !% % % ##*[ #????????????????? | | =%=%=! ]]! ##[ /#????????????????? | | [ =* %]]![|## #????????????????? | | % % [!% !]!!% ####+#?#????????????????? | | % ]% %[ * % ???????????????? | | = = * * = ???????????????? | | %##########" "####"###### % ?????????????? | | #????????#"T"#??####????###+#####??????????????? | | #????????#"""#?????????????????????????????????? | | #????????#####?????????????????????????????????? | +----------------------------------------------------+ Best States ------------- Heat Dissipation 45 Energy Generation 14 Energy Capacity 280 Matter Stores 300 Matter Capacity 300 Sight Range 16 Terrain Scan Density 10 Base Temperature (-) 100 Evasion (%) 66 Recoil Reduction 1 Item Schematics ----------------- Cesium-ion Thruster | -8/Materials | Scanalyzed Arm. Wheel | -8/Materials | Scanalyzed Hacking Suite | -8/Materials | Scanalyzed Hvy. Ion Engine | -8/Materials | Scanalyzed Robot Schematics ------------------ None Fabricated ------------ Nothing Repaired ---------- Nothing Studied --------- Cesium-ion Thruster | -8/Materials | Hacked Imp. Ion Engine | -8/Materials | Hacked Lgt. Ion Engine | -8/Materials | Hacked Alien Tech Used ----------------- None Achievements -------------- None Challenges ------------ None Game ------ Seed ZeronetZipProtomatter Manual? 0 Play Time 00:35:28 Cumulative 75.8 hours Start 2026.01.16 @ 21:09:58 End 2026.01.16 @ 23:47:46 Sessions 3 Manual Loads 0 Difficulty Rogue Special Mode None Game No. 91 Rogue 91 Adventurer 0 Explorer 0 Win Type - Total 1 Types 1/0/0/0/0/0/0/0/0/0 Lore% 51 Gallery% 50 Achievement% 40 Wizard Run 0 Options --------- Layout 2 ASCII 0 Keyboard 1 Movement Numpad Keybinds 0 Fullscreen 2 Font 24/Smallcaps Map View 50x44 Zoom Use 0% Tactical HUD 1 Map Filters NONE Filters NONE Steam 1 RUN: c400cd1a-f707-4151-bf24-2eb34c00b8c6